Workbook

Sheet General.
A1: UMDONI LOCAL MUNICIPALITY
A2: Upgrade of Emaromeni Access Road (Ward 14) from Gravel to Asphalt Surface
A3: Contract №
A4: SECTION 1 : FIXED CHARGE AND VALUE RELATED ITEMS
A5: Item | B5: Description | C5: Unit | D5: QTY | E5: Rate | F5: Amount R
A6: C1.0 | B6: GENERAL
A8: C1.2 | B8: GENERAL REQUIREMENTS AND PROVISIONS
A10: C1.2.3.11 | B10: Other road maintenance work ordered by the Engineer | C10: Prov Sum | D10: 1.00 | E10: 10,000.00 | F10: =D10*E10 -> R10,000.00
A12: C1.2.3.12 | B12: Handling cost, profit and all other charges in respect of item C1.2.3.11 | C12: % | D12: 5.00 | E12: R10,000.00 | F12: =D12%*E12 -> R500.00
A14: C1.2.5 | B14: Safety:
A16: C1.2.5.1 | B16: Health and safety plan | C16: Lump Sum | D16: 1 | E16: 15,000.00 | F16: =D16*E16 -> R15,000.00
A18: C1.2.5.2 | B18: Implementation of health and safety plan | C18: month | D18: 8.00 | F18: =D18*E18 -> 0
B20: Audit ordered by Engineers for Health and Safety | C20: Prov Sum | D20: 1.00 | E20: =6000*8 -> 48,000.00 | F20: =D20*E20 -> R48,000.00
A22: C1.2.1 | B22: Environmental Management
A24: C1.2.1.1 | B24: Monitoring of compliance with and reporting on the EMP | C24: month | D24: 8 | F24: =D24*E24 -> 0
A26: C1.2.1.2 | B26: Audit ordered by Engineers for Environmental | C26: Prov Sum | D26: 1 | E26: =8000*8 -> 64,000.00 | F26: =D26*E26 -> R64,000.00
A28: C1.2.8 | B28: Dayworks
A30: C1.2.8.1 | B30: Personnel
B32: (a) Unskilled labour | C32: h | D32: 350
B34: (b) Semi-skilled labour | C34: h | D34: 150
B36: (c) Skilled labour | C36: h | D36: 100
B38: (d) Gang leader | C38: h | D38: 25
B40: (e) Foreman | C40: h | D40: 50
A42: C1.2.8.2 | B42: Construction Equipment
B44: (a) Grader (CAT 140G or similar approved) | C44: h | D44: 450
B46: (b) Vibratory Roller (Bomag 212 or similar approved) | C46: h | D46: 350
B48: (c) Pneumatic Roller (Bomag BW 90 or similar approved) | C48: h | D48: 250
B50: (e) Backhoe TLB type (CAT 428 or equivalent) | C50: h | D50: 200
B52: (f) Excavator | C52: h | D52: 400
B54: (g) Compressor | C54: h | D54: 375
B56: (l) Water truck (5000 litres) | C56: h | D56: 100
B58: (i) Tipper truck, 6.0m3 | C58: h | D58: 200
A60: C1.2.8.4 | B60: Materials
B62: (a) Procurement of materials | C62: P C Sum | D62: 1 | E62: 20,000.00 | F62: =D62*E62 -> R20,000.00
B64: (b) Contractors handling cost, profit and all other charges in respect of subitem C1.2.8.4(a) | C64: % | D64: 2.5 | E64: =F62 -> 20,000.00
A66: C1.2.10 | B66: Compensation for Community Liaison Officer
B68: (a) Provisional sum for the payment of the Community Liaison Officer | C68: Month | D68: 8 | E68: 7,200.00 | F68: =D68*E68 -> R57,600.00
B70: (b) Handling cost and profit in respect of B12.03(a) above | C70: % | D70: 5 | E70: =F68 -> 57,600.00
A72: Total Carried Forward To Summary
A74: C1.3 | B74: CONTRACTOR'S ESTABLISHMENT ON SITE AND GENERAL OBLIGATIONS
A76: C1.3.1 | B76: Contractor's general obligations:
A78: C1.3.1.1 | B78: (a) Fixed obligations | C78: L Sum | D78: 1 | E78: 100,000.00 | F78: =D78*E78 -> R100,000.00
A80: C1.3.1.2 | B80: (b) Value-related obligations | C80: L Sum | D80: 1 | E80: 75,000.00 | F80: =D80*E80 -> R75,000.00
A82: C1.3.1.3 | B82: (c) Time-related obligations | C82: Month | D82: 8
A84: C1.3.2 | B84: Contract sign boards | C84: No | D84: 2
A86: PSC1.3.3 | B86: Provision of As Built Survey | C86: Prov Sum | D86: 1 | E86: 25,000.00 | F86: =D86*E86 -> R25,000.00
A88: Total Carried Forward To Summary
A90: C1.4 | B90: FACILITIES FOR THE ENGINEER
A92: C1.4.1 | B92: Site Accommodation
A94: C1.4.1.1 | B94: Offices and conference room | C94: m² | D94: 20
A96: C1.4.1.6 | B96: Car ports | C96: No | D96: 2
A98: C1.4.1.7 | B98: Ablution unit (VIP flushing) | C98: No | D98: 2
A100: C1.4.2 | B100: Items measured by area
A102: C1.4.2.9 | B102: White boards | C102: m² | D102: 2.5
A104: C1.4.2.11 | B104: Galvanised wire mesh storeroom gate with a padlock | C104: m² | D104: 0
A106: C1.4.3 | B106: Items measured by number
A108: C1.4.3.1 | B108: Office swivel chair | C108: No | D108: 1
A110: C1.4.3.2 | B110: Office chair (plastic) | C110: No | D110: 5
A112: C1.4.3.3 | B112: Office desk with 3 drawers (at least onelockable drawer) | C112: No | D112: 1
A114: C1.4.3.8 | B114: Conference table | C114: No | D114: 1
A116: C1.4.3.11 | B116: General purpose steel cabinet with shelves | C116: No | D116: 1
A118: C1.4.3.13 | B118: 220/250-volt power outlet plug point | C118: No | D118: 3
A120: C1.4.3.15 | B120: Single 1 500 mm, 58-watt fluorescent tube ceiling light | C120: No | D120: 3
A122: C1.4.3.23 | B122: Fire extinguisher 9,0 kg, dry powder type | C122: No | D122: 2
A124: C1.4.3.24 | B124: Air-conditioning unit | C124: No | D124: 1
A126: C1.4.3.28 | B126: UPS / Voltage stabiliser | C126: No | D126: 2
A128: C1.4.3.29 | B128: A3 / A4 colour printer, copier, scanner | C128: No | D128: 1
A130: C1.4.3.30 | B130: A4 colour printer, copier, scanner | C130: No | D130: 0
A132: C1.4.3.31 | B132: Rain gauge | C132: No | D132: 1
A134: C1.4.3.36 | B134: Measuring wheel | C134: No | D134: 1
A136: C1.4.3.37 | B136: First aid kit | C136: No | D136: 1
A138: C1.4.4 | B138: Prime cost items
A140: C1.4.4.5 | B140: The provision of server, internet connectivity and WIFI data for Engineer's site staff | C140: P/Sum | D140: 1
A142: C1.4.4.6 | B142: Handling cost and profit in respect of item C1.4.4.5 | C142: % | D142: 2.5
A144: C1.4.5 | B144: Services at site offices, laboratories and site accommodation
A146: C1.4.5.1 | B146: Fixed costs | C146: L/Sum | D146: 1
A148: C1.4.5.2 | B148: Running costs | C148: Month | D148: 8
A150: C1.4.6 | B150: Office Staff
A152: C1.4.6.2 | B152: Technical assistant (ARE) | C152: Month | D152: 8 | E152: 12,500.00 | F152: =D152*E152 -> R100,000.00
A154: Total Carried Forward To Summary
A156: C1.5 | B156: ACCOMMODATION OF TRAFFIC
A158: C1.5.2 | B158: Accommodation of vehicular traffic | C158: month | D158: 8
A160: C1.5.11 | B160: Provision of safety equipment for visitors
B162: (a) Rotating amber flashing lights magnetically attached to vehicles | C162: No | D162: 5
A164: C1.5.11.1 | B164: Provision of reflective safety vests for visitors | C164: No | D164: 10
A166: C1.5.11.2 | B166: Provision of hard hats for visitors | C166: No | D166: 5
A168: C1.5.7 | B168: Temporary traffic control facilities:
A170: C1.5.7.1 | B170: Delineators including mounting bases and ballast:
A172: C1.5.7.1 (a) | B172: Single sided, reversible left or right (size indicated) | C172: No | D172: 50
A174: C1.5.7.1 (b) | B174: Double sided, reversible left or right (size indicated) | C174: No | D174: 50
A176: C1.5.7.2 | B176: Traffic cones, minimum height 750 mm | C176: No | D176: 20
A178: C1.5.7.3 | B178: Flagmen | C178: man-shift | D178: 1300
A180: Total Carried Forward To Summary
A182: C2.0 | B182: SERVICES
A184: C2.1 | B184: GENERAL REQUIREMENTS AND TRENCHING FOR SERVICES
A186: C2.1.1 | B186: Location, identification, protection and relocation of existing services:
A188: C2.1.1.4 | B188: Permanent services relocation or protection work by the Contractor | C188: Prov Sum | D188: 1 | E188: 325,000.00 | F188: =D188*E188 -> R325,000.00
A190: Total Carried Forward To Summary
A192: C20.1 | B192: TESTING MATERIALS AND JUDGEMENT OF WORKMANSHIP
A194: C20.1.2 | B194: Special tests requested by the Engineer
A196: C20.1.2.2 | B196: Employer’s contribution to other special tests
B198: (a)Specify test | C198: PC Sum | D198: 1 | E198: 20,000.00 | F198: =D198*E198 -> R20,000.00
B200: (a.i)Handling costs and profit in respect of item C20.1.2.2(a) | C200: % | D200: 5 | E200: =F198 -> 20,000.00
B202: i) Acceptance testing | C202: Prov Sum | D202: 1 | E202: 50,000.00 | F202: =D202*E202 -> R50,000.00
A204: C20.1.3 | B204: Providing testing equipment
B206: (c) Straight edge – 3m long | C206: No | D206: 1
B208: (e) Electronic minimum and maximum thermometer | C208: No | D208: 1
A210: PSC20.1.4 | B210: Quality Control Testing of materials by the Contractor | C210: Sum | D210: 1 | E210: 50,000.00 | F210: =D210*E210 -> R50,000.00
A212: Total Carried Forward To Summary

Sheet Road
A1: UMDONI LOCAL MUNICIPALITY
A2: Upgrade of Emaromeni Access Road (Ward 14) from Gravel to Asphalt Surface
A3: Contract №
A4: SECTION 3: EMAROMENI ACCESS ROAD
A5: Item | B5: Description | C5: Unit | D5: QTY | E5: Rate | F5: Amount R
A6: C1.0 | B6: GENERAL
A8: C1.6 | B8: CLEARING AND GRUBBING
A10: C1.6.1 | B10: Clearing:
A12: C1.6.1.1 | B12: Clearing with machines and some hand labour where necessary | C12: ha | D12: =1.25+0.25 -> 1.5
A14: C1.6.2 | B14: Grubbing:
A16: C1.6.2.1 | B16: Grubbing with machines and some hand labour where necessary | C16: ha | D16: =1.25+0.25 -> 1.5
A18: C1.6.3 | B18: Removal and grubbing of large trees and tree stumps:
A20: C1.6.3.1 | B20: Girth equal to or exceeding 1,0 m up to and including 2,0 m | C20: No | D20: =3 -> 3
B22: i) Removal of shrubs and bushes | C22: m | D22: 200
A24: C1.6.4 | B24: Removal of buildings and structures
B26: i. Break out concrete surfacing on driveway and reinstate | C26: Lump Sum | D26: 1 | E26: 3,000.00 | F26: =E26*D26 -> 3,000.00
B28: ii. Demolish existing culvert headwalls (230mm thick) and remove from site | C28: No | D28: 5
B30: iii. Dismantle, store and reinstall existing bus shelter | C30: No | D30: 1
B32: iv. Remove existing DoT Road Marker | C32: No | D32: 1
A34: C1.6.9 | B34: Conservation of topsoil:
A36: C1.6.9.1 | B36: Stockpiling topsoil | C36: m³ | D36: =850+50 -> 900
B38: Removal of Topsoil 150mm depth | C38: m³ | D38: =850+50 -> 900
A40: Total Carried Forward To Summary
A42: C1.7 | B42: LOADING AND HAULING
A44: C1.7.1 | B44: Loading
A46: C1.7.1.1 | B46: Loading from stockpile using machines and some hand labour where necessary | C46: m3 | D46: 1000
A48: C1.7.2.1 | B48: Hauling material for use in the Works and off-loading it on the site of the Works: | C48: m3.km | D48: 500
A50: Total Carried Forward To Summary
A52: C2.0 | B52: SERVICES
A54: C2.1 | B54: GENERAL REQUIREMENTS AND TRENCHING FOR SERVICES
A56: C2.1.6 | B56: Trench excavation (in soft material)
A58: C2.1.6.1 | B58: Trenches up to 1,0 m wide
B60: (a) Up to 1,0 m deep | C60: m³ | D60: =50+50 -> 100
B62: i) For proving of services | C62: m³ | D62: 25
A64: Total Carried Forward To Summary
A66: C2.2 | B66: DRY SERVICES
A68: C2.2.1 | B68: Supply, lay and prove ducts
A70: C2.2.1.1 | B70: (a) 160mm class 6 uPVC ducts for water & electrical connections | C70: m | D70: =100+80 -> 180
B72: (b) 110mm class 6 uPVC ducts for Telkom & security | C72: m | D72: 80
A74: C2.2.4 | B74: Bedding for ducts compacted to 90 % of MDD (100 % for sand) using material:
A76: C2.2.4.1 | B76: Selected from the excavated trench material | C76: m³ | D76: =10+25 -> 35
A78: C2.4.3 | B78: Cable laying accessories (warning tape, protection slabs, markers etc.)
A80: C2.4.3.3 | B80: Cable markers- Electrical ducts | C80: No. | D80: =10+4 -> 14
A82: Total Carried Forward To Summary
A84: C3.0 | B84: DRAINAGE
A86: C3.1 | B86: DRAINS
A88: C3.1.1 | B88: Excavation for open drains:
A90: C3.1.1.1 | B90: Excavating all material situated within the following depth ranges below the surface level using conventional methods: for open drains
B92: (a)(i) 0 m to 1,5 m for subsoils | C92: m³ | D92: =90+10 -> 100
B94: (a)(ii) 0 m to 1,5 m for 600mm wide concrete lined V-drain | C94: m³ | D94: 270
B96: (a)(iii) 0 m to 1,5 m for 600mm wide concrete lined V-drain Ch350 to CH520 | C96: m³ | D96: 150
B98: (a)(iv) 0 m to 1,5 m for 1300mm wide concrete channel | C98: m³ | D98: 100
B100: i) Excavating and shaping of earth drains | C100: m | D100: =200 -> 200
B102: ii) Formalisation of driveways | C102: m | D102: 100
B104: iii) Excaving unsuitable materials from trench bottom and dispose (prov quantity) | C104: m³ | D104: 2.5
A106: C3.1.1.2 | B106: Extra over sub-item C3.1.1.1 for excavation in hard and boulder material irrespective of depth | C106: m³ | D106: 10
A108: C3.1.3 | B108: Excavation, clearing and disposal of accumulated sediment in existing lined drains and drainage systems:
A110: C3.1.3.1 | B110: Using conventional methods (up to 1,5 m):
B112: (a) Manholes and inlet and outlet structures | C112: m³ | D112: =5+1 -> 6
B114: (b) Culvert barrels | C114: m³ | D114: =13+1 -> 14
A116: C3.1.3.3 | B116: Using labour enhanced construction methods:
B118: (c) Concrete or other lined side drains | C118: m³ | D118: 5
A120: C3.1.4 | B120: Excavation and disposal of material for subsoil drainage systems:
A122: C3.1.4.1 | B122: Excavating in all material situated within the following depth ranges below the surface:
B124: (a) 0 m to 1,5 m | C124: m³ | D124: =10+25 -> 35
A126: C3.1.5 | B126: Impermeable backfilling to subsoil drainage systems
A128: C3.1.5.1 | B128: Un-stabilised natural gravel obtained from approved sources on the site | C128: m3 | D128: 10
A130: C3.1.7 | B130: Natural permeable material in subsoil drainage systems (approved crushed stone):
A132: C3.1.7.2 | B132: Crushed stone obtained from commercial sources (coarse grade 19mm nominal size) | C132: m³ | D132: =25+7 -> 32
A134: C3.1.8 | B134: Natural permeable material in subsoil drainage systems (approved natural sand):
A136: C3.1.8.2 | B136: Natural sand from commercial sources (coarse grade, 5mm nominal size) | C136: m³ | D136: =20+7 -> 27
A138: C3.1.9 | B138: Pipes in subsoil drainage systems:
A140: C3.1.9.1 | B140: U-PVC pipes and fittings, normal duty, complete with couplings:
B142: (i) 110 mm internal dia. Slotted | C142: m | D142: =250+50 -> 300
A144: C3.1.11 | B144: Geotextiles (synthetic-fibre filter fabric, grade A3) | C144: m² | D144: =380+80 -> 460
A146: C3.1.15 | B146: Repairing or replacing existing drainage systems | C146: No | D146: 2
A148: C3.1.22 | B148: Test flushing of subsoil drain pipe systems | C148: No | D148: =5+2 -> 7
A150: C3.1.23 | B150: Subsoil drain outlet marker (type or drawing specified) | C150: No | D150: =5+2 -> 7
A152: Total Carried Forward To Summary
A154: C3.2 | B154: CULVERTS
A156: C3.2.1 | B156: Excavation for culvert structures:
A158: C3.2.1.1 | B158: Excavating in all material situated within the following depth ranges below the surface level:
B160: (a) 0 m to 1,5 m | C160: m³ | D160: 300
A162: C3.2.1.5 | B162: Extra over sub-item C3.2.1.1 for excavation in stabilised existing road layers, irrespective of depth | C162: m³ | D162: 30
B164: De-silt and clean existing pipe culverts and inlet/outlet structures
B166: i) 450mm dia. with spigot and socket joints | C166: m | D166: 10
B168: ii) 600mm dia. with spigot and socket joints | C168: m | D168: 15
B170: iii) 900mm dia. with spigot and socket joints | C170: m | D170: 20
A172: C3.2.2 | B172: Backfilling:
A174: C3.2.2.1 | B174: Using the excavated material | C174: m³ | D174: 250
A176: C3.2.2.2 | B176: Using imported selected material:
B178: (a) From commercial sources (clean coarse sand) | C178: m³ | D178: 20
A180: C3.2.3 | B180: Concrete pipe culverts:
A182: C3.2.3.3 | B182: On Class C bedding (type and diameter indicated)
B184: (a) 450mm dia. Class 100D with spigot and socket joints for driveway crossings | C184: m | D184: 30
B186: (b) 600mm dia. Class 100D with spigot and socket joints | C186: m | D186: 61
B188: (c) 900mm dia. Class 100D with spigot and socket joints | C188: m | D188: 25
A190: C3.2.7 | B190: Cast-in-situ concrete and formwork:
A192: C3.2.7.5 | B192: In inlet and outlet structures including kerbs, chutes and downpipes, skewed ends, catchpits, manholes, thrust and anchor blocks, including formwork but including Class U2 surfacing finish, class 30/20 concrete | C192: m³ | D192: 10
A194: C3.2.9 | B194: Prefabricated concrete inlets and outlets to culverts (size and type indicated)
B196: ii) Energy disapators as per detail | C196: No | D196: 90
B198: iii) Inlet/outlet structure for a 450mm dia single pipe culvert for driveways as shown on layout plans | C198: No | D198: 8
B200: iv) Inlet/outlet structure for a 600mm dia single pipe culvert as shown on layout plans | C200: No | D200: 7
B202: v) Inlet/outlet structure for a 900mm dia single pipe culvert as shown on layout plans | C202: No | D202: 2
A204: C3.2.10 | B204: Reinforcement:
A206: C3.2.10.1 | B206: Mild steel bars | C206: t | D206: 1
A208: C3.2.13 | B208: Removing and re-laying existing culverts:
A210: C3.2.13.2 | B210: Removing and re-laying existing culverts without stacking (600mm dia single pipe) | C210: m | D210: 20
A212: PSC3.2.28 | B212: Demolish existing Inlet/outlet structure for a 600mm dia single pipe culvert as shown on layout plans | C212: No | D212: 4
A214: C3.2.15 | B214: Manholes and catch pits, with prefabricated elements
B216: Manholes
B218: i) Construct brick manholes complete as per detailed up to 2.0m deep | C218: No. | D218: 6
B220: Catchpits
B222: i) Construct catchpit complete as per detailed
B224: a) Type S2 single splay | C224: No. | D224: 6
B226: a) Type D3 double splay | C226: No. | D226: 1
A228: C3.2.16 | B228: Brickwork (Engineering bricks):
A230: C3.2.16.2 | B230: 230 mm thick - Headwall for 450mm dia Class 100D pipe Culverts | C230: No. | D230: 8
A232: C3.2.16.2 | B232: 230 mm thick - Headwall for 600mm dia Class 100D pipe Culverts | C232: No. | D232: 7
A234: C3.2.16.3 | B234: 345 mm thick - Headwall for 900mm dia Class 100D pipe Culverts | C234: No. | D234: 2
A236: C3.2.23 | B236: Breaking into existing drainage structures and building in pipes or culverts of the following size (600mm dia)
B238: (i) Existing brickwork manholes | C238: No | D238: 4
A240: Total Carried Forward To Summary
A242: C3.3 | B242: CONCRETE KERBING AND CHANNELING, ASPHALT BERMS, CHUTES, DOWNPIPES, CONCRETE, STONE PITCHED AND GABION LININGS FOR OPEN DRAINS
A244: C3.3.1 | B244: Concrete kerbing:
A246: C3.3.1.1 | B246: Prefabricated kerbing (reference to drawing as per KZN DOT SD SD0701/A):
B248: (a) Figure 12 kerb to sidewalk (including sealed silicone joints) class 30/20 concrete | C248: m | D248: =1000+100 -> 1100
A250: C3.3.2 | B250: Concrete kerbing-channeling combination:
A252: C3.3.2.1 | B252: Prefabricated kerbing-channeling combination (including sealed silicone joints class 25/20 concrete):
B254: (a) Type B barrier kerb (Figure 6) class 30/20 with 400mm wide channel | C254: m | D254: 900
B256: (b) Type B barrier kerb (Figure 6) class 30/20 with 500mm wide channel | C256: m | D256: 70
B258: (c) Type B barrier kerb (Figure 6) class 30/20 with 1000mm wide channel to tie-into existing DOT kerb and channel | C258: m | D258: =30+60 -> 90
B260: (d) Mountable kerb (Figure 6) class 30/20 concrete | C260: m | D260: 1000
B262: (e) Transition kerbs (Figure 6) class 30/20 concrete | C262: m | D262: 80
A264: C3.3.3 | B264: Extra over items C3.3.1 and C3.3.2 for concrete kerbing or concrete kerbing and channeling on curves:
A266: C3.3.3.1 | B266: On curves of radii more than or equal to 5,0 m but less than 20,0 m | C266: m | D266: =50+20 -> 70
A268: C3.3.3.2 | B268: On curves with radii more than or equal to 1,0 m but less than 5,0 m | C268: m | D268: =30+20 -> 50
A270: C3.3.4 | B270: Extra over item C3.3.2 for drop kerbs at pedestrian crossings and driveways | C270: m | D270: 20
A272: C3.3.6 | B272: Concrete chutes (open chutes):
A274: C3.3.6.2 | B274: Cast in situ concrete chutes (Type 1365U as per KZN DOT SD 0605/A) | C274: m | D274: =100+10 -> 110
A276: C3.3.8 | B276: Linings for open drains:
A278: C3.3.8.1 | B278: Cast-in-situ concrete lining class 30/20 for V-drain:
B280: (a) 600mm wide Concrete lined V-drain as per standard detail | C280: m³ | D280: =20+3.5 -> 23.5
B282: (a) 600mm wide Concrete lined V-drain (Ch350 to Ch520) as per standard detail | C282: m³ | D282: 10
B284: (b) 1300mm wide Concrete lined channel as per standard detail | C284: m³ | D284: 6
A286: C3.3.8.2 | B286: Class U2 surface finish to cast-in-situ concrete for 600mm wide V-drain | C286: m² | D286: =160+20 -> 180
B288: Class U2 surface finish to cast-in-situ concrete for 600mm wide V-drain (Ch350 to Ch520) | C288: m² | D288: 100
B290: Class U2 surface finish to cast-in-situ concrete for 1300mm wide Concrete lined channel | C290: m² | D290: 52
A292: C3.3.9 | B292: Formwork to cast-in-situ concrete lining for open drains (Class F2 surface finish):
A294: C3.3.9.2 | B294: i) To sides with formwork on both internal and external faces (each face measured) for 600mm wide Concrete lined V-drain | C294: m² | D294: =150+3 -> 153
B296: i) To sides with formwork on both internal and external faces (each face measured) for 600mm wide Concrete lined V-drain (Ch350 to Ch520) | C296: m² | D296: 100
B298: ii) To sides with formwork on both internal and external faces (each face measured) for 1300mm wide Concrete lined channel | C298: m² | D298: 52
A300: C3.3.9.3 | B300: i) To ends of slabs for 600mm wide Concrete lined V-drain | C300: m² | D300: =15+3 -> 18
B302: i) To ends of slabs for 600mm wide Concrete lined V-drain (Ch350 to Ch520) | C302: m² | D302: 10
B304: ii) To ends of slabs for 1300mm wide Concrete lined channel | C304: m² | D304: 6
A306: C3.3.10 | B306: Sealed joints in concrete linings of open drains
B308: (a) 10mm thick expansion joints sealed with a closed cell polyethylene jointing material at 12m centres - SD0601 for 600mm wide Concrete lined V-drain | C308: m | D308: =22+2 -> 24
B310: (a) 10mm thick expansion joints sealed with a closed cell polyethylene jointing material at 12m centres - SD0601 for 600mm wide Concrete lined V-drain (Ch350 to Ch520) | C310: m | D310: 10
B312: (a) 10mm thick expansion joints sealed with a closed cell polyethylene jointing material at 12m centres - SD0601 for 1300mm wide Concrete lined channel | C312: m | D312: 6
A314: C3.3.11 | B314: Concrete screed or backfill below chutes (75mm thickness, class 20/20 concrete) | C314: m³ | D314: =75+5 -> 80
A316: C3.3.12 | B316: Reinforcement:
A318: C3.3.12.3 | B318: i) Welded steel fabric (mesh ref.193) for 600mm wide Concrete lined V-drain | C318: m² | D318: =160+20 -> 180
B320: i) Welded steel fabric (mesh ref.193) for 600mm wide Concrete lined V-drain (Ch350 to Ch520) | C320: m² | D320: 100
B322: i) Welded steel fabric (mesh ref.193) for 1300mm wide Concrete lined channel | C322: m² | D322: 52
A324: C3.3.14 | B324: Cutting bituminous surfacing and pavement layers for concrete kerbing, channeling or concrete-lined drains | C324: m | D324: 30
A326: C3.3.15 | B326: Energy dissipaters in outlet structures
A328: C3.3.15.1 | B328: Precast concrete blocks in outlet structures | C328: No | D328: 4
A330: C3.3.15.2 | B330: Stones set in outlet structures | C330: m² | D330: 10
A332: Total Carried Forward To Summary
A334: C4.0 | B334: EARTHWORKS AND PAVEMENT LAYERS: MATERIALS
A336: C4.2 | B336: CUT MATERIALS
A338: C4.2.3 | B338: Excavating of materials in cuttings, material obtained from:
A340: C4.2.3.1 | B340: Soft excavation | C340: m³ | D340: =200+8 -> 208
A342: C4.2.4.2 | B342: Boulder excavation class A | C342: m³ | D342: 5
A344: C4.2.3.4 | B344: Hard excavation (other than by blasting) | C344: m³ | D344: =25+2 -> 27
A346: C4.2.7 | B346: Removal of unsuitable stable cut material to spoil:
A348: C4.2.7.1 | B348: In layer thicknesses of 200 mm and less | C348: m³ | D348: =5+2 -> 7
A350: PSC4.2.13 | B350: Subgrade improvement | C350: m³ | D350: 200
A352: Total Carried Forward To Summary
A354: C4.3 | B354: EXISTING ROAD MATERIALS
A356: C4.3.4 | B356: Saw-cutting existing materials within the following average depth ranges:
A358: C4.3.4.1 | B358: Asphalt material:
B360: (a) Up to 50 mm | C360: m | D360: 100
A362: C4.3.9 | B362: Excavating material by using conventional road construction equipment:
A364: C4.3.9.2 | B364: Crushed stone materials | C364: m³ | D364: =10+5 -> 15
A366: C4.3.9.4 | B366: Natural gravel and sand materials | C366: m³ | D366: =20+10 -> 30
B368: i) Suitable existing G5 material from site | C368: m³ | D368: 100
A370: C4.3.14.1 | B370: Removing of existing road edging using construction equipment:
B372: (a) Kerbing and edge beams:
B374: (i) Damaged In-situ concrete kerbing and edge beams | C374: m³ | D374: 40
B376: (iii) Precast concrete kerbing (fig.6) and situ concrete channel (300mm wide) | C376: m | D376: 65
A378: C4.3.15 | B378: Stockpiling of road layer materials:
A380: C4.3.15.2 | B380: Crushed stone material | C380: m³ | D380: 6
A382: C4.3.15.4 | B382: Natural gravel material | C382: m³ | D382: 15
B384: i) Suitable existing G5 material from site | C384: m³ | D384: 90
A386: Total Carried Forward To Summary
A388: C4.4 | B388: COMMERCIAL MATERIALS
A390: C4.4.2 | B390: Commercial materials identified by the Contractor from commercial, private or other non-commercial suppliers
A392: C4.4.2.1 | B392: Pavement layer material:
B394: (b)(i) Type G2 material (for road base) | C394: m³ | D394: =1100+75 -> 1175
... 141 more rows

Sheet Summary
A1: UMDONI LOCAL MUNICIPALITY
A2: Upgrade of Emaromeni Access Road (Ward 14) from Gravel to Asphalt Surface
A3: Contract №
A5: SUMMARY OF SECTIONS
A7: CHAPTER | B7: DESCRIPTION | C7: AMOUNT
A9: SECTION 1: FIXED CHARGE AND VALUE RELATED ITEMS
A10: C1.2 | B10: GENERAL REQUIREMENTS AND PROVISIONS | C10: =General.!F72 -> 0
A11: C1.3 | B11: CONTRACTOR'S ESTABLISHMENT ON SITE AND GENERAL OBLIGATIONS | C11: =General.!F88:F88 -> 0 | G11: =C42-C10-C11-C12-C13-C14-C15 -> 0 | H11: =G11*0.1 -> 0
A12: C1.4 | B12: FACILITIES FOR THE ENGINEER | C12: =General.!F154 -> 0
A13: C1.5 | B13: ACCOMMODATION OF TRAFFIC | C13: =General.!F180 -> 0
A14: C2.1 | B14: GENERAL REQUIREMENTS AND TRENCHING FOR SERVICES | C14: =General.!F190 -> 0
A15: C20.1 | B15: TESTING MATERIALS AND JUDGEMENT OF WORKMANSHIP | C15: =General.!F212 -> 0
B16: SUB TOTAL A | C16: =SUM(C10:C15) -> 0
A17: SECTION 3: EMAROMENI ACCESS ROAD
A18: C1.6 | B18: CLEARING AND GRUBBING | C18: =Road!F40 -> 0
A19: C1.7 | B19: LOADING AND HAULING | C19: =Road!F50 -> 0
A20: C2.1 | B20: GENERAL REQUIREMENTS AND TRENCHING FOR SERVICES | C20: =Road!F64 -> 0
A21: C2.2 | B21: DRY SERVICES | C21: =Road!F82 -> 0
A22: C3.1 | B22: DRAINS | C22: =Road!F152 -> 0
A23: C3.2 | B23: CULVERTS | C23: =Road!F240 -> 0
A24: C3.3 | B24: CONCRETE KERBING AND CHANNELING, ASPHALT BERMS, CHUTES, DOWNPIPES, CONCRETE, STONE PITCHED AND GABION LININGS FOR OPEN DRAINS | C24: =Road!F332 -> 0
A25: C4.2 | B25: CUT MATERIALS | C25: =Road!F352 -> 0
A26: C4.3 | B26: PRETREATMENT AND REPAIR EXISTING LAYERS | C26: =Road!F386 -> 0
A27: C4.4 | B27: COMMERCIAL MATERIALS | C27: =Road!F408 -> 0
A28: C5.1 | B28: ROADBED | C28: =Road!F426 -> 0
A29: C5.2 | B29: FILL | C29: =Road!F438 -> 0
A30: C5.3 | B30: ROAD PAVEMENT LAYERS | C30: =Road!F458 -> 0
A31: C8.1 | B31: PRIME COAT | C31: =Road!F474 -> 0
A32: C9.1 | B32: ASPHALT LAYERS | C32: =Road!F502 -> 0
A33: C11.1 | B33: PITCHING, STONEWORK, CAST IN SITU CONCRETE FOR PROTECTION AGAINST EROSION | C33: =Road!F516 -> 0
A34: C11.2 | B34: NON-STRUCTURAL GABIONS | C34: =Road!F542 -> 0
A35: C11.4 | B35: ROAD RESTRAINT SYSTEMS | C35: =Road!F564 -> 0
A36: C11.5 | B36: FENCING | C36: =Road!F578 -> 0
A37: C11.6 | B37: ROAD SIGNS | C37: =Road!F613 -> 0
A38: C11.7 | B38: ROAD MARKINGS AND ROAD STUDS | C38: =Road!F651 -> 0
A39: C11.8 | B39: LANDSCAPING AND PLANTING PLANTS | C39: =Road!F667 -> 0
A40: C11.9 | B40: FINISHING THE ROAD AND ROAD RESERVE AND TREATING OLD ROADS | C40: =Road!F675 -> 0
B41: SUB TOTAL C | C41: =SUM(C18:C40) -> 0
B42: NETT TENDER VALUE (A,B & C) | C42: =C41+C16 -> 0
A43: Add: | B43: 10% CONTINGENCIES | C43: =C42*0.1 -> 0
B44: NETT TENDER VALUE (INCL CONTINGENCIES) | C44: =C42+C43 -> 0
A45: Add: | B45: VAT @ 15% | C45: =C44*0.15 -> 0
B46: TENDER SUM TOTAL | C46: =C44+C45 -> 0
A48: COMPANY NAME : …………………………..…………………..……………………….. | C48: (Block Capitals)
A50: SIGNATURE : …………………………..…………………..………..…..…..…..….. | C50: DATE: ...........................
B51: (of person authorised to sign on behalf of the Tenderer)
